Department,Expense Area,Date,Supplier,Transaction Number,Amount,Expense Type
Home Office,"BICS - Borders, Immigration & Citizenship System",02/09/2021,DATACAMP INC.,"99-BICS - Borders, Immigration & Citizenship System-404581",4045.81,"1 Year Subscription Pricing Plan For 15 Licences To Access A Suite Of Learning Data Science (R, Python, Sql). Unable To Pay Via Purchase Order Method."
Home Office,CE - Corporate Enablers,30/09/2021,ICO.ORG.UK,96-CE - Corporate Enablers-2900,2900.00,Annual Ico Registration Fee For The Home Office
Home Office,CPFG - Crime Policing & Fire Group,21/09/2021,SumUp Reliance Chauf,97-CPFG - Crime Policing & Fire Group-560,560.00,Covid Secure Taxi For Chairman X 4 Journeys
Home Office,CPFG - Crime Policing & Fire Group,27/09/2021,ADOBE CREATIVE CLOUD,98-CPFG - Crime Policing & Fire Group-59633000000000004,596.33,Comms Creative Cloud Annual Subscription Approved By Comms Lead
Home Office,HMPO - Her Majesty's Passport Office,21/09/2021,AMAZON,4-HMPO - Her Majesty's Passport Office-60232000000000005,602.32,"Desk Riser Required For Member Of Glasgow Staff As Part Of Reasonable Adjustment Enabling Them To Return To Work , Bought At Request Of Glasgow Wpm As They Do Not Have Any Live Gpc Cards At Present"
Home Office,HMPO - Her Majesty's Passport Office,22/09/2021,THE SMART CARD STORE,3-HMPO - Her Majesty's Passport Office-74142,741.42,100 X Act Proximity Cards/2 X Film Ribbon For Act Printer-Requested By Estates To Replenish Stocks Due To Low Stock/Impending Staff Return. Items Not Available On Basware. Smartcard Store Are Cheapest Supplier. Gpc/Budget Approval Granted By Wpm Heo Ic
Home Office,HMPO - Her Majesty's Passport Office,24/09/2021,P2PCOURIERS,1-HMPO - Her Majesty's Passport Office-55125,551.25,Courier Request To Transport 6 X Yorkies To Peterborough Sorpa Steria Requested By Supplier Manager Current Contract With Courier City Sprint Has No Provisions To Provide A Luton Van With Tail Lift Facilities. Authorised By Wpm Heo
Home Office,HMPO - Her Majesty's Passport Office,24/09/2021,P2PCOURIERS,2-HMPO - Her Majesty's Passport Office-90563,905.63,Courier Request To Transport 6 X Yorkies To Newport Sorpa Steria Requested By Supplier Manager Current Contract With Courier City Sprint Has No Provisions To Provide A Luton Van With Tail Lift Facilities. Authorised By appropriate staff
Home Office,HMPO - Her Majesty's Passport Office,30/09/2021,SP BLACK CAT PC,0-HMPO - Her Majesty's Passport Office-6998,699.80,"20 Power Adaptors For The Digital Services Support Team - Item Not Available To Order Via Metis, And Required Urgently To Avoid Disruption To Dsst�S Ability In Providing Laptops To Contractors."
Home Office,Homeland Security,03/09/2021,HILTON,101-Homeland Security-756,756.00,Accomodation For Gifct For The G7
Home Office,UKBF - Border Force,01/09/2021,AMAZON,95-UKBF - Border Force-62761,627.61,4 X Dell 21.5 Monitors & 1 X Dell 24 Monitor For Officer Facilities In Garages 1 And 2 And Booth 2 Allowing Officers To Have Double-Screens To Assist With Working Across Various Databases On Poise & Stride At The Same Time
Home Office,UKBF - Border Force,02/09/2021,MR ANIMAL SERVICES LIM,88-UKBF - Border Force-55996,559.96,"Treatment Again For High Temperature, Scans And Overnight"
Home Office,UKBF - Border Force,06/09/2021,AIRBNB HM9PDXQ3AT,82-UKBF - Border Force-107469,1074.69,1552 21 Active As - 7 X Nights' Accommodation Reservation For 4 People - Stornoway - For Operational Reasons. No Accommodation Available Through Ctm Which Was Below Budget. Cost 38.38 Per Person Per Night.
Home Office,UKBF - Border Force,06/09/2021,AIRBNB HMRDA3MK8Z,81-UKBF - Border Force-11050899999999999,1105.09,"Accommodation In Stornoway Whilst On Operations, No Accommodation Available From Ctm To Accommodate All Crew. Cost Per Night Is 39 Per Person Per Night, 51 Per Night Per Person Cheaper Than The Policy Rate."
Home Office,UKBF - Border Force,08/09/2021,BIGDUG LIMITED,75-UKBF - Border Force-153193,1531.93,Racking For The Containers - 1601/21/Champion/Sb
Home Office,UKBF - Border Force,08/09/2021,MEDIVET,68-UKBF - Border Force-105705,1057.05,"Consultations , Treatment And Medication For 8 X Detector Dogs Including Ga And Dental Extraction, Xray And Additional Pics."
Home Office,UKBF - Border Force,10/09/2021,AMAZON,52-UKBF - Border Force-79606,796.06,"3 Printers That Were Needed For Our Shore Side Officers, That Were Need In And Around Our Staff Quickly To Stop Delays In Staffing And Programming."
Home Office,UKBF - Border Force,10/09/2021,AMAZON,45-UKBF - Border Force-17517,1751.70,Security Padlocks For Hrhv Qw Stores. Padlock Type Advised By Ho Security.
Home Office,UKBF - Border Force,10/09/2021,AVERY WEIGH TRONIX,28-UKBF - Border Force-2070,2070.00,"3 X Bench Scales, Required By Border Force For Set Up Of New Liverpool Sites. Approved By Senior Management."
Home Office,UKBF - Border Force,13/09/2021,AMAZON,49-UKBF - Border Force-792,792.00,"8 X High Security Padlocks, Required By Border Force For Set Up Of New Liverpool Sites. Approved By Senior Management."
Home Office,UKBF - Border Force,13/09/2021,Security Exhibitions L,57-UKBF - Border Force-1200,1200.00,Payment For Stand At Olympia International Security Expo
Home Office,UKBF - Border Force,13/09/2021,VETS NOW,83-UKBF - Border Force-9122,912.20,"Out Of Hours Emergency Admission And Overnight Stay, Treatment And Medication For Detector Dog Who Had Contracted Pneumonia."
Home Office,UKBF - Border Force,15/09/2021,1STOPTIONSAFETY,56-UKBF - Border Force-12204000000000001,1220.40,Safe And Safe+ Courses Which Are Both Mandatory And The Staff Due To Be Posted overseas Shortly With Bf International.
Home Office,UKBF - Border Force,15/09/2021,CHEADLE SURGERY WDC B0,69-UKBF - Border Force-64961,649.61,Veterinary Treatment For Detector Dogs In Training. 
Home Office,UKBF - Border Force,15/09/2021,KINGSTON VETERINARY GR,70-UKBF - Border Force-100272,1002.72,Veterinary Treatment For Border Force Dogs In Training
Home Office,UKBF - Border Force,15/09/2021,W.E.C.ALARMS LIMITED,71-UKBF - Border Force-720,720.00,Annual Monitoring Of 4G Felixstowe
Home Office,UKBF - Border Force,16/09/2021,TARDISENVIRONMENTA,74-UKBF - Border Force-750,750.00,Lrn: 1399/21/Hurricane/Mh - Portable Toilet Cubicle For Adaption And Fitting To Bf Hurricane. Purchase And Delivery To Ct11
Home Office,UKBF - Border Force,17/09/2021,LVL-NORTH DOWN SPECIAL,22-UKBF - Border Force-2750,2750.00,Restorative Elbow Operation For Detector Dog.
Home Office,UKBF - Border Force,17/09/2021,SumUp Cinque Ports C,39-UKBF - Border Force-10033,1003.30,Food Supplies For Operational Officers At Tug Haven
Home Office,UKBF - Border Force,20/09/2021,Betaprint,23-UKBF - Border Force-834,834.00,Operational Logs For Our Cutters Cpv�S And Engine Room Logs
Home Office,UKBF - Border Force,20/09/2021,SP STREET SOLUTIONS,33-UKBF - Border Force-71736,717.36,60 X Traffic Cones And Chains Required By Border Force For New Set Up Of Liverpool Sites. Approved By Senior Management.
Home Office,UKBF - Border Force,20/09/2021,SP STREET SOLUTIONS,34-UKBF - Border Force-71736,717.36,"Another 60 X Traffic Cones And Chains, Required By Border Force For Set Up Of New Liverpool Sites. Approved By Senior Management."
Home Office,UKBF - Border Force,20/09/2021,TURIM AV.LIBERDADE HOT,67-UKBF - Border Force-122042,1220.42,"Ctm Had Not Paid The Hotel Bill. The Hotel Would Not Accept Ctm'S Word Over The Phone That The Bill Would Be Paid. Demanded Full Payment By Us overseas, Otherwise Would Not Be Allowed Into Rooms To Get Personal Belongings. HO staff   Auth Payment By Gpc."
Home Office,UKBF - Border Force,21/09/2021,VICTORIA PIER FUEL,78-UKBF - Border Force-109405,1094.05,1079.46 Litres Of Fuel @ 0.64P Per Ltr For Cpv Alert Ref 1651/21/Alert/Ad Approved By HO staff
Home Office,UKBF - Border Force,22/09/2021,1STOPTIONSAFETY,55-UKBF - Border Force-8004,800.40,Mandatory Safety Overseas Course For An International Posting
Home Office,UKBF - Border Force,22/09/2021,eBay O 04-07632-84237,31-UKBF - Border Force-996,996.00,"X4 Larder Fridge For Ibf Facility, Please Code To: Cost Centre; 1431878, Project Code 14509350"
Home Office,UKBF - Border Force,22/09/2021,SP CONTAINER CARE SO,40-UKBF - Border Force-8676,867.60,X 4 Wheelie Bins For Ibf Facility. Please Code To Cost Centre; 1431878 Project Code 14509350
Home Office,UKBF - Border Force,23/09/2021,AMAZON,51-UKBF - Border Force-50112,501.12,X 4 Metal Detector For Ibf Facility. Cost Centre; 1431878. Project Code 14509350
Home Office,UKBF - Border Force,24/09/2021,AMAZON,50-UKBF - Border Force-79998,799.98,X 2 Chest Freezer For Ibf Facility. Cost Centre; 1431878. Project Code 14509350
Home Office,UKBF - Border Force,24/09/2021,VICTORIA PIER FUEL,77-UKBF - Border Force-107895,1078.95,Fuel For Cpv Alert On The Island Of Jersey. Fuel Is Needed To Make The Engines Work And Power The Boat. Lrn: 1651 21 Alert Ad
Home Office,UKBF - Border Force,27/09/2021,BLUEPOINT MARINE SERVI,72-UKBF - Border Force-10932,1093.20,Authorised By HO staff. Berthing Fees Incurred. Paid Po: 1726/21/Mtlu/Bh
Home Office,UKBF - Border Force,29/09/2021,EUROPCAR,24-UKBF - Border Force-849,849.00,Hire Car Rental When Enterprise Could Not Outsource This Has Been Added To Alert Order Book And Bmu Notified Of The Use
Home Office,UKBF - Border Force,30/09/2021,AMAZON,47-UKBF - Border Force-63894000000000005,638.94,The Purchase Was For 2 Laptops Purchased As A Donation To The Ecuadorian Police As Authorised By Bf International G7.
Home Office,UKBF - Border Force,30/09/2021,AMAZON,48-UKBF - Border Force-63894000000000005,638.94,The Purchase Was For 2 Laptops Purchased As A Donation To The Ecuadorian Police As Authorised By Bf International G7 Mark Taylor.
Home Office,UKBF - Border Force,30/09/2021,ANORIA,62-UKBF - Border Force-159347,1593.47,Blinds At The Inter Maritime Operations Centre (Operations Room)
Home Office,UKBF - Border Force,30/09/2021,APM,58-UKBF - Border Force-704,704.00,"The Equipment Is Required To Have Checks Which We Do Every 2 Months To Make Sure The Equipment Is Up To Date And Working Correctly. The Pads Were Due To Expired In 2 Weeks� Time, So We Had To Order New Ones To Meet The Guidelines. The Pads Were Order For Our 2 Offices One In Folkestone And One In Sussex"
Home Office,UKBF - Border Force,30/09/2021,APM,59-UKBF - Border Force-704,704.00,These Payments Are Tickets At The Bronze Non-Member Level To The Apm Awards Ceremony In Which This Unit (Border Readiness) Has Been Chosen As A Finalist. The Costs Represent 2 Lots Of 2X Tickets Each At 352 Individually
Home Office,UKBF - Border Force,30/09/2021,CYCLE WORKS,25-UKBF - Border Force-3900,3900.00,Lockable Bicycle Store For Staff Use
Home Office,UKBF - Border Force,30/09/2021,Globe home expert,63-UKBF - Border Force-80509,805.09,And The Globe Item Is For An Air-Conditioning Unit Now Housed In The Training Room At The Same Place (overseas) .
Home Office,UKBF - Border Force,30/09/2021,RS COMPONENTS,29-UKBF - Border Force-65520000000000005,655.20,6 X Inspection Lights Required By Border Force For Set Up Of New Liverpool Sites. Only 3 Received To Date. Approved By Senior Management
Home Office,UKBF - Border Force,30/09/2021,THANET DC MOTO,60-UKBF - Border Force-14091,1409.10,Payment For Several Tows And Boatlifts Of Migrant Vessels At Ramsgate.
Home Office,UKIE - UK Immigration Enforcement,02/09/2021,1STOPTIONSAFETY,91-UKIE - UK Immigration Enforcement-8004,800.40,Essential �Safe� Training Course For Operational Colleagues Traveling Aboard To Potentially Hostile Environments
Home Office,UKIE - UK Immigration Enforcement,02/09/2021,1STOPTIONSAFETY,92-UKIE - UK Immigration Enforcement-8004,800.40,Essential �Safe� Training Course For Operational Colleagues Traveling Aboard To Potentially Hostile Environments
Home Office,UKIE - UK Immigration Enforcement,02/09/2021,1STOPTIONSAFETY,93-UKIE - UK Immigration Enforcement-8004,800.40,Essential �Safe� Training Course For Operational Colleagues Traveling Aboard To Potentially Hostile Environments
Home Office,UKIE - UK Immigration Enforcement,02/09/2021,ECHOSEC.NET,89-UKIE - UK Immigration Enforcement-80081,800.81,"To Purchase Echosec, It Is Specialist Software Used For Online Investigations That This Team Deliver To Criminal And Financial Investigators Within Immigration Enforcement"
Home Office,UKIE - UK Immigration Enforcement,03/09/2021,1STOPTIONSAFETY,90-UKIE - UK Immigration Enforcement-8004,800.40,Essential �Safe� Training Course For Operational Colleagues Traveling Aboard To Potentially Hostile Environments
Home Office,UKIE - UK Immigration Enforcement,03/09/2021,1STOPTIONSAFETY,94-UKIE - UK Immigration Enforcement-8004,800.40,Mandatory Training Course That Officers Being Posted Abroad
Home Office,UKIE - UK Immigration Enforcement,06/09/2021,AGODA,73-UKIE - UK Immigration Enforcement-81235,812.35,Quarantine Hotel Package For individual Following Immigration Removal From The Uk.
Home Office,UKIE - UK Immigration Enforcement,06/09/2021,APPLE/UK,27-UKIE - UK Immigration Enforcement-658,658.00,Ipads For Use In The Jcr/Coastguard
Home Office,UKIE - UK Immigration Enforcement,06/09/2021,GO OUTDOORS,42-UKIE - UK Immigration Enforcement-500,500.00,Purchase Of 50 Rolls Mats For Use At Tug Haven By Migrants Who Have To Sleep Overnight. Instructed By HO perosnnel To Purchase Them For Level 1 Day Following.
Home Office,UKIE - UK Immigration Enforcement,06/09/2021,Go Outdoors Retail Lim,79-UKIE - UK Immigration Enforcement-1490,1490.00,Part Order Of Rollmats To Support Migrants Overnighting At Tug Haven. Order Split Between 2 Suppliers Because Of Volume
Home Office,UKIE - UK Immigration Enforcement,06/09/2021,HOTEL LES COCOTIERS 1,66-UKIE - UK Immigration Enforcement-50261,502.61,Quarantine Hotel Required For Family Of 4 Returning To Mauritius As A Public Expense Return
Home Office,UKIE - UK Immigration Enforcement,07/09/2021,AMAZON,80-UKIE - UK Immigration Enforcement-799,799.00,Part Order Of Rollmats To Support Migrants Overnighting At Tug Haven. Order Split Between 2 Suppliers Because Of Volume
Home Office,UKIE - UK Immigration Enforcement,07/09/2021,SumUp Cinque Ports C,26-UKIE - UK Immigration Enforcement-11085999999999999,1108.60,Hot Food For Staff During Op Altair
Home Office,UKIE - UK Immigration Enforcement,08/09/2021,SumUp Cinque Ports C,21-UKIE - UK Immigration Enforcement-11232,1123.20,Food Provisions For Staff Welfare When Dealing With Channel Migrant Issues On Extended Shifts And High Arrival Numbers.
Home Office,UKIE - UK Immigration Enforcement,09/09/2021,LA FRIENDS PIZZERIA,41-UKIE - UK Immigration Enforcement-519,519.00,Hot Food For Migrants Staying Overnight At The Tug Haven During Op Altair
Home Office,UKIE - UK Immigration Enforcement,10/09/2021,FIRST RESCUE TRAINING,85-UKIE - UK Immigration Enforcement-57120000000000005,571.20,"Defib Battery'S For Equipment In Kent And Sussex Office, Needed To Take Out On Visits Etc. Authorised By Hmi'S"
Home Office,UKIE - UK Immigration Enforcement,10/09/2021,SumUp Cinque Ports C,20-UKIE - UK Immigration Enforcement-9409,940.90,Food Purchased For Staff At Tug Haven. This Has Been Authorised By HO personnel
Home Office,UKIE - UK Immigration Enforcement,13/09/2021,AGODA,6-UKIE - UK Immigration Enforcement-82962,829.62,Quarantine Hotel Package
Home Office,UKIE - UK Immigration Enforcement,13/09/2021,AMAZON,43-UKIE - UK Immigration Enforcement-17195,1719.50,Camera Film Purchased By The Clandestine Operational Response Team (Cort) For Use At The Tug Haven In Dover Where We Have Migrants Arriving On Small Boats. All Migrants Require An Instant Photo Taken�On Arrival�
Home Office,UKIE - UK Immigration Enforcement,13/09/2021,SPRINGWISEBOTTLEDW,8-UKIE - UK Immigration Enforcement-50316,503.16,Provision Of Bottled Water For Migrants And Officers At Tug Haven Site.
Home Office,UKIE - UK Immigration Enforcement,13/09/2021,SumUp Cinque Ports C,19-UKIE - UK Immigration Enforcement-11258,1125.80,Food Provisions For Staff Welfare When Dealing With Channel Migrant Issues On Extended Shifts And High Arrival Numbers
Home Office,UKIE - UK Immigration Enforcement,13/09/2021,UNIVERSEALK,10-UKIE - UK Immigration Enforcement-540,540.00,"Provision Of Property Tags - Tug Haven, Dover."
Home Office,UKIE - UK Immigration Enforcement,15/09/2021,1STOPTIONSAFETY,53-UKIE - UK Immigration Enforcement-8004,800.40,Safe Training Booking For Staff Member
Home Office,UKIE - UK Immigration Enforcement,15/09/2021,POLYBAGS LIMITED,12-UKIE - UK Immigration Enforcement-90618,906.18,"Provision Of Property Bags At Tug Haven, Dover. Unavailable Via Existing Contract."
Home Office,UKIE - UK Immigration Enforcement,16/09/2021,SumUp Cinque Ports C,18-UKIE - UK Immigration Enforcement-8026,802.60,Food Provisions For Staff Welfare When Dealing With Channel Migrant Issues On Extended Shifts And High Arrival Numbers
Home Office,UKIE - UK Immigration Enforcement,20/09/2021,SumUp Cinque Ports C,17-UKIE - UK Immigration Enforcement-9396,939.60,Staff Catering Van For Level 1 Stand Up Day
Home Office,UKIE - UK Immigration Enforcement,22/09/2021,BLOOD AND MEDICAL SERV,46-UKIE - UK Immigration Enforcement-625,625.00,"Pcr Covid Tests Booked For A Family Of Five Voluntary Returnees (125 Per Test - Refs: G1247375), A Negative Pcr Test Is An Entry Clearance Requirement, Otherwise The Passengers Would Not Be Allowed To Board. Gpc Only Way To Pay For Pcr Tests At Present."
Home Office,UKIE - UK Immigration Enforcement,22/09/2021,DEFIBOUTLE DEFIB OUTL,13-UKIE - UK Immigration Enforcement-552,552.00,Purchased Defib Replacement Tabs At Request Of staff To Keep Team Defibs Up To Regulations
Home Office,UKIE - UK Immigration Enforcement,22/09/2021,SumUp Cinque Ports C,16-UKIE - UK Immigration Enforcement-9154,915.40,Provision Of Hot Food For Officers Working At Tug Haven
Home Office,UKIE - UK Immigration Enforcement,23/09/2021,Dominos (Dover),38-UKIE - UK Immigration Enforcement-274875,2748.75,Hot Food For Migrants Staying Overnight At Tug Haven During Op Altair
Home Office,UKIE - UK Immigration Enforcement,23/09/2021,ST JOHN AMBULANCE,86-UKIE - UK Immigration Enforcement-61920000000000005,619.20,Replacement Crp Pads For Defibrillators. For North East Ice Team
Home Office,UKIE - UK Immigration Enforcement,23/09/2021,ST JOHN AMBULANCE,87-UKIE - UK Immigration Enforcement-61920000000000005,619.20,Replacement Crp Pads For Defibrillators. For Central Ice Team
Home Office,UKIE - UK Immigration Enforcement,23/09/2021,SumUp Cinque Ports C,15-UKIE - UK Immigration Enforcement-1092,1092.00,Hot Food For Staff During Op Altair
Home Office,UKIE - UK Immigration Enforcement,24/09/2021,EX DEMO HUT,9-UKIE - UK Immigration Enforcement-804,804.00,Portable Screen Stand For Dst Screens In New Office
Home Office,UKIE - UK Immigration Enforcement,24/09/2021,POLYBAGS LIMITED,11-UKIE - UK Immigration Enforcement-88829,888.29,"Property Bags, Tug Haven, Dover - Unavailable Via Existing Contract"
Home Office,UKIE - UK Immigration Enforcement,24/09/2021,SumUp Cinque Ports C,14-UKIE - UK Immigration Enforcement-7153,715.30,"Hot Food Provision For Officers Working At Tug Haven, Dover"
Home Office,UKIE - UK Immigration Enforcement,27/09/2021,Dominos (Dover),36-UKIE - UK Immigration Enforcement-87207,872.07,"Provision Of Hot Food For Migrants At Tug Haven Site, Dover"
Home Office,UKIE - UK Immigration Enforcement,27/09/2021,Dominos (Dover),35-UKIE - UK Immigration Enforcement-168645,1686.45,Hot Food Requirement For Migrants Spending Overnight At Tug Haven
Home Office,UKIE - UK Immigration Enforcement,27/09/2021,Dominos (Dover),37-UKIE - UK Immigration Enforcement-1700,1700.00,"Food For Migrants Being Detained At Tug Haven Overnight. Th Does Not Have A Kitchen Facility, So There Are No Other Options. This Purchase Was Ordered by authorised staff."
Home Office,UKIE - UK Immigration Enforcement,27/09/2021,SPRINGWISEBOTTLEDW,7-UKIE - UK Immigration Enforcement-50316,503.16,Bottled Water Supply. Tug Haven. Dover.
Home Office,UKIE - UK Immigration Enforcement,28/09/2021,Dominos (Dover),32-UKIE - UK Immigration Enforcement-514,514.00,Pizzas For Migrants Held Overnight At Tug Haven Due To Not Being Able To Move Them On To Accommodation Within The Home Office Estate. Tug Haven Is A Tent In A Car Park
Home Office,UKIE - UK Immigration Enforcement,28/09/2021,Dominos (Dover),30-UKIE - UK Immigration Enforcement-3143,3143.00,Food For Migrants Held Overnight At Tug Haven Due To No On Going Facilities In The Home Office Estate. Tug Haven Is A Tent In A Car Park So Therefore So Other Means Of Feeding Them
Home Office,UKIE - UK Immigration Enforcement,28/09/2021,FIRST RESCUE TRAINING,5-UKIE - UK Immigration Enforcement-58079999999999995,580.80,The Defib Machine Is Part Of The Ppe That Is Required To Be Taken Out In The Cell Vans Every Time We Deploy. This Is In Case The Team Are Require Assist A Person Who Has Stopped Breathing.
Home Office,UKIE - UK Immigration Enforcement,28/09/2021,HOT PACK INTERNATIONAL,76-UKIE - UK Immigration Enforcement-44161499999999996,4416.15,"Self-Heating Meals. Online Booking Form Reset An Order Of 36 Units To 1, Hence This Second Order"
Home Office,UKIE - UK Immigration Enforcement,28/09/2021,SHERATON,61-UKIE - UK Immigration Enforcement-402756,4027.56,Voluntary Return. It Is For Accommodation On Arrival In Hong Kong Which Is Part Of Their Covid Requirements
Home Office,UKIE - UK Immigration Enforcement,29/09/2021,1STOPTIONSAFETY,54-UKIE - UK Immigration Enforcement-552,552.00,Mandatory Course Our Team Are Required To Complete
Home Office,UKIE - UK Immigration Enforcement,29/09/2021,BLOOD AND MEDICAL SERV,44-UKIE - UK Immigration Enforcement-625,625.00,"Pcr Covid Tests Booked For A Family Of Five Voluntary Returnees (125 Per Test - Refs: M1694395), A Negative Pcr Test Is An Entry Clearance Requirement, Otherwise The Passengers Would Not Be Allowed To Board. Gpc Only Way To Pay For Pcr Tests At Present"
Home Office,UKIE - UK Immigration Enforcement,29/09/2021,HOTEL ISOLA SACRA ROME,65-UKIE - UK Immigration Enforcement-5864,586.40,To Purchase A Hotel Room For A Migrant Who We Were Returning To Italy. The Covid Entry Requirements To Italy Require Passengers To Self Isolate For 5 Days Following Their Arrival And As The Migrant Had No Address In Italy We Agreed To Purchase A Hotel Room Where He Could Self - Isolate.
Home Office,UKIE - UK Immigration Enforcement,29/09/2021,LE GRAND BLEU HOTEL,64-UKIE - UK Immigration Enforcement-6344,634.40,Hotel Quarantine Payment For Voluntary Return
Home Office,UKIE - UK Immigration Enforcement,30/09/2021,PHOENIXHSCK,84-UKIE - UK Immigration Enforcement-1614,1614.00,Nebosh Course Business Critical For staff member To Attend
Home Office,UKVI - UK Visas & Immigration,07/09/2021,CURRYS ONLINE,100-UKVI - UK Visas & Immigration-62048,620.48,"Two Hp Chromebooks And Storage Sleeves Bought By The Amif Childcare Project, To Be Used For Offsite Remote Interviewing Of Single Parent Families While Children Are In Childcare. They Are Held Securely On Non Home Office Sites."
